[Event "Late-Titled-Tuesday-Blitz-October-10-2023"]
[Site "Chess.com"]
[Date "2023.10.10"]
[Round "8"]
[White "topin8"]
[Black "Javylavilla"]
[Result "1-0"]
[WhiteElo "2417"]
[BlackElo "2337"]
[TimeControl "180+1"]
[EndTime "15:23:01 PDT"]
[Termination "topin8 won by resignation"]

1. e4 {[%clk 0:03:00.9]} 1... e6 {[%clk 0:02:59.2]} 2. d4 {[%clk 0:03:00.7]}
2... d5 {[%clk 0:02:59.6]} 3. Nd2 {[%clk 0:03:01.3]} 3... c5 {[%clk 0:02:58.8]}
4. Ngf3 {[%clk 0:03:01.4]} 4... Nc6 {[%clk 0:02:56]} 5. dxc5 {[%clk 0:02:57.1]}
5... Bxc5 {[%clk 0:02:54.5]} 6. Bd3 {[%clk 0:02:57.3]} 6... Nf6 {[%clk
0:02:52.8]} 7. O-O {[%clk 0:02:54.5]} 7... h6 {[%clk 0:02:37.5]} 8. c3 {[%clk
0:02:35.4]} 8... O-O {[%clk 0:02:36]} 9. Qe2 {[%clk 0:02:34.8]} 9... Re8 {[%clk
0:02:23]} 10. e5 {[%clk 0:02:18.4]} 10... Nd7 {[%clk 0:02:22.4]} 11. Nb3 {[%clk
0:02:18.3]} 11... Bf8 {[%clk 0:02:18.7]} 12. Bf4 {[%clk 0:02:12.7]} 12... f6
{[%clk 0:01:51.7]} 13. Bg6 {[%clk 0:02:10.6]} 13... Re7 {[%clk 0:01:47.6]} 14.
Nbd4 {[%clk 0:01:56]} 14... Ncxe5 {[%clk 0:01:34.1]} 15. Nxe5 {[%clk 0:01:55.5]}
15... fxe5 {[%clk 0:01:31]} 16. Bxe5 {[%clk 0:01:56.4]} 16... Nxe5 {[%clk
0:01:31.4]} 17. Qxe5 {[%clk 0:01:56.8]} 17... Qc7 {[%clk 0:01:30.7]} 18. f4
{[%clk 0:01:34.4]} 18... Qxe5 {[%clk 0:01:19.5]} 19. fxe5 {[%clk 0:01:34.4]}
19... Bd7 {[%clk 0:01:20.4]} 20. h4 {[%clk 0:01:18.2]} 20... Be8 {[%clk
0:01:19.8]} 21. h5 {[%clk 0:01:17.9]} 21... Bxg6 {[%clk 0:01:19.9]} 22. hxg6
{[%clk 0:01:18.8]} 22... Ree8 {[%clk 0:01:13.7]} 23. Rf7 {[%clk 0:01:16.8]}
23... Re7 {[%clk 0:01:08.9]} 24. Raf1 {[%clk 0:01:13.9]} 24... Rae8 {[%clk
0:01:03.7]} 25. Nb5 {[%clk 0:00:58.1]} 25... a6 {[%clk 0:00:56.8]} 26. Nc7
{[%clk 0:00:46.5]} 26... Rc8 {[%clk 0:00:49.3]} 27. Rxe7 {[%clk 0:00:43.4]}
27... Bxe7 {[%clk 0:00:50.2]} 28. Nxe6 {[%clk 0:00:44]} 28... Rc6 {[%clk
0:00:40.6]} 29. Nf4 {[%clk 0:00:43]} 29... Bg5 {[%clk 0:00:38.9]} 30. Nxd5
{[%clk 0:00:18]} 30... Rxg6 {[%clk 0:00:38.4]} 31. Re1 {[%clk 0:00:17]} 31...
Re6 {[%clk 0:00:36]} 32. Kf2 {[%clk 0:00:15]} 32... Kf7 {[%clk 0:00:36.1]} 33.
Nc7 {[%clk 0:00:09.8]} 33... Re7 {[%clk 0:00:34.9]} 34. e6+ {[%clk 0:00:09.9]}
34... Kg6 {[%clk 0:00:30.8]} 35. Nd5 {[%clk 0:00:10.2]} 35... Re8 {[%clk
0:00:30.8]} 36. g3 {[%clk 0:00:06.8]} 36... Kf5 {[%clk 0:00:30.7]} 37. Kf3
{[%clk 0:00:04.3]} 37... Rxe6 {[%clk 0:00:29]} 38. g4+ {[%clk 0:00:04.1]} 38...
Kg6 {[%clk 0:00:24.9]} 39. Rxe6+ {[%clk 0:00:05]} 39... Kf7 {[%clk 0:00:25.8]}
40. Rb6 {[%clk 0:00:05]} 1-0

[Event "Late-Titled-Tuesday-Blitz-October-10-2023"]
[Site "Chess.com"]
[Date "2023.10.10"]
[Round "8"]
[White "tylityli"]
[Black "lluiss"]
[Result "1/2-1/2"]
[WhiteElo "2336"]
[BlackElo "2226"]
[TimeControl "180+1"]
[EndTime "15:23:03 PDT"]
[Termination "Game drawn by repetition"]

1. d4 {[%clk 0:03:00.4]} 1... Nf6 {[%clk 0:02:59.4]} 2. c4 {[%clk 0:02:59.3]}
2... g6 {[%clk 0:02:59.8]} 3. Nc3 {[%clk 0:02:58]} 3... d5 {[%clk 0:03:00.1]} 4.
cxd5 {[%clk 0:02:57.9]} 4... Nxd5 {[%clk 0:03:01]} 5. Bd2 {[%clk 0:02:58.1]}
5... Nb6 {[%clk 0:02:59.9]} 6. Bf4 {[%clk 0:02:57.4]} 6... Bg7 {[%clk
0:02:59.4]} 7. e3 {[%clk 0:02:57.7]} 7... O-O {[%clk 0:02:59.3]} 8. Nf3 {[%clk
0:02:54.5]} 8... c5 {[%clk 0:02:59.3]} 9. dxc5 {[%clk 0:02:50]} 9... N6d7 {[%clk
0:02:59.1]} 10. c6 {[%clk 0:02:48.9]} 10... Nxc6 {[%clk 0:02:57.7]} 11. Bb5
{[%clk 0:02:48.2]} 11... Nc5 {[%clk 0:02:31.1]} 12. Qxd8 {[%clk 0:02:45.3]}
12... Rxd8 {[%clk 0:02:30.2]} 13. O-O {[%clk 0:02:42.8]} 13... Bg4 {[%clk
0:01:53.8]} 14. Rfd1 {[%clk 0:02:36.1]} 14... Rxd1+ {[%clk 0:01:48.3]} 15. Rxd1
{[%clk 0:02:35.6]} 15... e5 {[%clk 0:01:42.4]} 16. Bg3 {[%clk 0:02:23.4]} 16...
e4 {[%clk 0:01:41.4]} 17. h3 {[%clk 0:02:21.7]} 17... Bh5 {[%clk 0:01:40.9]} 18.
Bd6 {[%clk 0:02:17.3]} 18... exf3 {[%clk 0:01:34.5]} 19. Bxc5 {[%clk 0:02:15.6]}
19... fxg2 {[%clk 0:01:33.5]} 20. Rd7 {[%clk 0:02:15]} 20... Bf3 {[%clk
0:01:19.6]} 21. Be2 {[%clk 0:02:07.7]} 21... Bxc3 {[%clk 0:01:08.9]} 22. Bxf3
{[%clk 0:02:06.3]} 22... Bxb2 {[%clk 0:01:09.2]} 23. Rxb7 {[%clk 0:02:03.5]}
23... Ne5 {[%clk 0:01:09.2]} 24. Kxg2 {[%clk 0:01:55.8]} 24... Nxf3 {[%clk
0:01:04.2]} 25. Kxf3 {[%clk 0:01:52.7]} 25... Rc8 {[%clk 0:00:50.6]} 26. Bxa7
{[%clk 0:01:47.6]} 26... Bf6 {[%clk 0:00:43.8]} 27. a4 {[%clk 0:01:45.4]} 27...
Rc2 {[%clk 0:00:43.4]} 28. a5 {[%clk 0:01:42.1]} 28... Ra2 {[%clk 0:00:42.9]}
29. Bb6 {[%clk 0:01:40.6]} 29... Bc3 {[%clk 0:00:42.4]} 30. Ra7 {[%clk
0:01:39.1]} 30... Be1 {[%clk 0:00:35.1]} 31. e4 {[%clk 0:01:38.6]} 31... Ra3+
{[%clk 0:00:35.1]} 32. Kf4 {[%clk 0:01:35.7]} 32... Ra2 {[%clk 0:00:32.7]} 33.
f3 {[%clk 0:01:34.4]} 33... h6 {[%clk 0:00:28.4]} 34. Bd4 {[%clk 0:01:29.1]}
34... Rxa5 {[%clk 0:00:25.8]} 35. Rxa5 {[%clk 0:01:27.1]} 35... Bxa5 {[%clk
0:00:25.6]} 36. h4 {[%clk 0:01:25.8]} 36... h5 {[%clk 0:00:24.7]} 37. Bf6 {[%clk
0:01:24.2]} 37... Bd2+ {[%clk 0:00:24.6]} 38. Kg3 {[%clk 0:01:22.8]} 38... Kf8
{[%clk 0:00:23.9]} 39. f4 {[%clk 0:01:22.4]} 39... Ke8 {[%clk 0:00:23.4]} 40. f5
{[%clk 0:01:22.6]} 40... Kd7 {[%clk 0:00:23.6]} 41. fxg6 {[%clk 0:01:20]} 41...
fxg6 {[%clk 0:00:23.1]} 42. Kf3 {[%clk 0:01:19.1]} 42... Ke6 {[%clk 0:00:22.9]}
43. Bd8 {[%clk 0:01:18]} 43... Bc3 {[%clk 0:00:22.2]} 44. Bg5 {[%clk 0:01:16.6]}
44... Be5 {[%clk 0:00:21.9]} 45. Be3 {[%clk 0:01:13.7]} 45... Bf6 {[%clk
0:00:20.4]} 46. Bf2 {[%clk 0:01:12.6]} 46... Ke5 {[%clk 0:00:17.2]} 47. Ke3
{[%clk 0:01:11.8]} 47... Ke6 {[%clk 0:00:15.2]} 48. Kf4 {[%clk 0:01:10.1]} 48...
Be7 {[%clk 0:00:15]} 49. Kf3 {[%clk 0:01:07]} 49... Bd6 {[%clk 0:00:12.9]} 50.
Be1 {[%clk 0:01:05]} 50... Be5 {[%clk 0:00:12.9]} 51. Bf2 {[%clk 0:01:04.4]}
51... Bf6 {[%clk 0:00:12.9]} 52. Bg3 {[%clk 0:01:03.6]} 52... Be7 {[%clk
0:00:12.7]} 53. Bf2 {[%clk 0:01:02.4]} 53... Ke5 {[%clk 0:00:12.8]} 54. Bg3+
{[%clk 0:00:53.8]} 54... Ke6 {[%clk 0:00:12.8]} 55. Bf2 {[%clk 0:00:53.4]}
1/2-1/2

[Event "Late-Titled-Tuesday-Blitz-October-10-2023"]
[Site "Chess.com"]
[Date "2023.10.10"]
[Round "8"]
[White "rychessmaster1"]
[Black "subham777"]
[Result "1-0"]
[WhiteElo "2698"]
[BlackElo "2525"]
[TimeControl "180+1"]
[EndTime "15:23:04 PDT"]
[Termination "rychessmaster1 won by resignation"]

1. Nf3 {[%clk 0:02:58]} 1... d5 {[%clk 0:02:59.2]} 2. e3 {[%clk 0:02:58]} 2...
Nf6 {[%clk 0:02:54.4]} 3. c4 {[%clk 0:02:58.1]} 3... e6 {[%clk 0:02:54.8]} 4.
Nc3 {[%clk 0:02:57.2]} 4... Be7 {[%clk 0:02:55.4]} 5. b3 {[%clk 0:02:57.3]} 5...
O-O {[%clk 0:02:55.8]} 6. Bb2 {[%clk 0:02:57.5]} 6... c5 {[%clk 0:02:54.2]} 7.
cxd5 {[%clk 0:02:57.3]} 7... exd5 {[%clk 0:02:49.4]} 8. d4 {[%clk 0:02:57.5]}
8... Nc6 {[%clk 0:02:49.1]} 9. Be2 {[%clk 0:02:56.8]} 9... Re8 {[%clk
0:02:48.7]} 10. O-O {[%clk 0:02:55.9]} 10... a6 {[%clk 0:02:41.9]} 11. Rc1
{[%clk 0:02:52.4]} 11... cxd4 {[%clk 0:02:38.5]} 12. Nxd4 {[%clk 0:02:52.3]}
12... Bd7 {[%clk 0:02:34.4]} 13. Na4 {[%clk 0:02:44.3]} 13... Bd6 {[%clk
0:02:26.2]} 14. Nc5 {[%clk 0:02:36.1]} 14... Bxc5 {[%clk 0:02:23.2]} 15. Rxc5
{[%clk 0:02:37]} 15... Rc8 {[%clk 0:02:23.1]} 16. Nxc6 {[%clk 0:02:27]} 16...
Bxc6 {[%clk 0:02:21.3]} 17. Qa1 {[%clk 0:02:14.2]} 17... Ne4 {[%clk 0:02:03.4]}
18. Rc2 {[%clk 0:02:13.9]} 18... Qg5 {[%clk 0:02:00.3]} 19. Bd4 {[%clk 0:02:07]}
19... Nd6 {[%clk 0:01:52.5]} 20. Rfc1 {[%clk 0:02:00.8]} 20... Nf5 {[%clk
0:01:36]} 21. Bf1 {[%clk 0:01:24]} 21... h5 {[%clk 0:01:24.6]} 22. a4 {[%clk
0:01:09.9]} 22... h4 {[%clk 0:01:06.9]} 23. h3 {[%clk 0:01:10.1]} 23... Bd7
{[%clk 0:01:02.4]} 24. Kh1 {[%clk 0:00:55.4]} 24... Rxc2 {[%clk 0:00:56.4]} 25.
Rxc2 {[%clk 0:00:56.3]} 25... Rc8 {[%clk 0:00:55.6]} 26. Rxc8+ {[%clk
0:00:56.2]} 26... Bxc8 {[%clk 0:00:56.5]} 27. Be5 {[%clk 0:00:54.4]} 27... Qe7
{[%clk 0:00:45.9]} 28. Bh2 {[%clk 0:00:49.6]} 28... Qe4 {[%clk 0:00:41]} 29. Qc3
{[%clk 0:00:49.7]} 29... Qe8 {[%clk 0:00:20.6]} 30. Bd3 {[%clk 0:00:40.2]} 30...
Be6 {[%clk 0:00:18.1]} 31. Qe5 {[%clk 0:00:38.7]} 31... Qc8 {[%clk 0:00:16]} 32.
Bf4 {[%clk 0:00:36.3]} 32... Ne7 {[%clk 0:00:14.2]} 33. Qg5 {[%clk 0:00:33.1]}
33... Nf5 {[%clk 0:00:11.5]} 34. Kh2 {[%clk 0:00:28.3]} 34... Qc3 {[%clk
0:00:09.8]} 35. Bxf5 {[%clk 0:00:27.5]} 35... Bxf5 {[%clk 0:00:10.2]} 36. Qxf5
{[%clk 0:00:28.4]} 36... Qxb3 {[%clk 0:00:10.8]} 37. Qd7 {[%clk 0:00:22.5]}
37... b5 {[%clk 0:00:09]} 38. a5 {[%clk 0:00:21.4]} 38... Qa2 {[%clk 0:00:08.8]}
39. Qc8+ {[%clk 0:00:21.5]} 39... Kh7 {[%clk 0:00:08.3]} 40. Qxa6 {[%clk
0:00:22.2]} 40... Qe2 {[%clk 0:00:07.5]} 41. Qb7 {[%clk 0:00:19.8]} 41... Qc4
{[%clk 0:00:06.1]} 42. a6 {[%clk 0:00:19.7]} 42... b4 {[%clk 0:00:05.4]} 43. a7
{[%clk 0:00:20]} 1-0

[Event "Late-Titled-Tuesday-Blitz-October-10-2023"]
[Site "Chess.com"]
[Date "2023.10.10"]
[Round "8"]
[White "martinez_95"]
[Black "cthake"]
[Result "1-0"]
[WhiteElo "2210"]
[BlackElo "1962"]
[TimeControl "180+1"]
[EndTime "15:23:06 PDT"]
[Termination "martinez_95 won on time"]

1. e4 {[%clk 0:02:55.5]} 1... e6 {[%clk 0:02:56.9]} 2. d4 {[%clk 0:02:55.1]}
2... d5 {[%clk 0:02:56.7]} 3. Nd2 {[%clk 0:02:54.9]} 3... Nf6 {[%clk 0:02:53.9]}
4. e5 {[%clk 0:02:49.9]} 4... Nfd7 {[%clk 0:02:53.8]} 5. f4 {[%clk 0:02:49.7]}
5... c5 {[%clk 0:02:53.8]} 6. c3 {[%clk 0:02:48.7]} 6... Nc6 {[%clk 0:02:52.2]}
7. Ndf3 {[%clk 0:02:48.6]} 7... Qb6 {[%clk 0:02:51.6]} 8. Ne2 {[%clk 0:02:44.5]}
8... cxd4 {[%clk 0:02:41.9]} 9. cxd4 {[%clk 0:02:45.4]} 9... f6 {[%clk
0:02:40.7]} 10. g3 {[%clk 0:02:32.6]} 10... Bb4+ {[%clk 0:02:22.8]} 11. Bd2
{[%clk 0:02:31.6]} 11... O-O {[%clk 0:02:22.2]} 12. Bh3 {[%clk 0:02:24.5]} 12...
f5 {[%clk 0:01:59.6]} 13. g4 {[%clk 0:02:21.5]} 13... g6 {[%clk 0:01:38.7]} 14.
gxf5 {[%clk 0:02:18.5]} 14... exf5 {[%clk 0:01:38.4]} 15. O-O {[%clk 0:01:58.3]}
15... Bxd2 {[%clk 0:01:35.2]} 16. Qxd2 {[%clk 0:01:57.4]} 16... Qb4 {[%clk
0:01:17.3]} 17. Qxb4 {[%clk 0:01:43.4]} 17... Nxb4 {[%clk 0:01:13.8]} 18. a3
{[%clk 0:01:43.4]} 18... Nc2 {[%clk 0:00:51.5]} 19. Rac1 {[%clk 0:01:36]} 19...
Ne3 {[%clk 0:00:50.5]} 20. Rf2 {[%clk 0:01:29.3]} 20... Nb6 {[%clk 0:00:47.9]}
21. Nc3 {[%clk 0:01:14.7]} 21... Be6 {[%clk 0:00:42.3]} 22. Re2 {[%clk
0:00:58.4]} 22... Nec4 {[%clk 0:00:39.1]} 23. Ng5 {[%clk 0:00:55.3]} 23... Rfe8
{[%clk 0:00:33.4]} 24. Nb5 {[%clk 0:00:49.9]} 24... Rac8 {[%clk 0:00:17.5]} 25.
Nxa7 {[%clk 0:00:42.7]} 25... Ra8 {[%clk 0:00:17.4]} 26. Nb5 {[%clk 0:00:42.3]}
26... Rac8 {[%clk 0:00:17.5]} 27. Nxe6 {[%clk 0:00:31]} 27... Rxe6 {[%clk
0:00:16.3]} 28. Rec2 {[%clk 0:00:31.6]} 28... Rec6 {[%clk 0:00:14.1]} 29. Na7
{[%clk 0:00:29.7]} 29... Ne3 {[%clk 0:00:10.3]} 30. Nxc6 {[%clk 0:00:24.8]}
30... bxc6 {[%clk 0:00:07.1]} 31. Rxc6 {[%clk 0:00:23.9]} 31... Rxc6 {[%clk
0:00:06.1]} 32. Rxc6 {[%clk 0:00:24.8]} 32... Nbc4 {[%clk 0:00:06]} 33. b4
{[%clk 0:00:16.8]} 33... Nxa3 {[%clk 0:00:05.3]} 34. Bf1 {[%clk 0:00:15]} 34...
Nec2 {[%clk 0:00:01.2]} 35. b5 {[%clk 0:00:13]} 35... Nxd4 {[%clk 0:00:01.1]}
36. Rc8+ {[%clk 0:00:13.4]} 1-0

[Event "Late-Titled-Tuesday-Blitz-October-10-2023"]
[Site "Chess.com"]
[Date "2023.10.10"]
[Round "8"]
[White "acertijo08"]
[Black "NelsonLinda"]
[Result "0-1"]
[WhiteElo "2413"]
[BlackElo "2589"]
[TimeControl "180+1"]
[EndTime "15:23:10 PDT"]
[Termination "NelsonLinda won on time"]

1. e4 {[%clk 0:03:00.9]} 1... c5 {[%clk 0:02:57.9]} 2. Nf3 {[%clk 0:02:59.7]}
2... e6 {[%clk 0:02:58.8]} 3. d4 {[%clk 0:02:59.1]} 3... cxd4 {[%clk 0:02:59.5]}
4. Nxd4 {[%clk 0:02:59.8]} 4... Nf6 {[%clk 0:02:59.9]} 5. Nc3 {[%clk 0:02:59.6]}
5... d6 {[%clk 0:03:00]} 6. g4 {[%clk 0:02:59.6]} 6... e5 {[%clk 0:02:59.8]} 7.
Bb5+ {[%clk 0:02:58.6]} 7... Bd7 {[%clk 0:02:58.7]} 8. Bxd7+ {[%clk 0:02:58.7]}
8... Qxd7 {[%clk 0:02:59.6]} 9. Nf5 {[%clk 0:02:55.1]} 9... h5 {[%clk
0:02:58.7]} 10. Bg5 {[%clk 0:02:25.6]} 10... Nh7 {[%clk 0:02:56.4]} 11. Bh4
{[%clk 0:02:08.8]} 11... g5 {[%clk 0:02:48.9]} 12. Bxg5 {[%clk 0:01:56.9]} 12...
Nxg5 {[%clk 0:02:47]} 13. Nd5 {[%clk 0:01:57.8]} 13... Nh7 {[%clk 0:02:42.2]}
14. gxh5 {[%clk 0:01:54.2]} 14... Nc6 {[%clk 0:02:41.2]} 15. c3 {[%clk 0:01:39]}
15... O-O-O {[%clk 0:02:37.7]} 16. Qa4 {[%clk 0:01:32.6]} 16... Kb8 {[%clk
0:02:35.3]} 17. O-O-O {[%clk 0:01:30.1]} 17... Ne7 {[%clk 0:02:26.2]} 18. Qxd7
{[%clk 0:01:08.9]} 18... Rxd7 {[%clk 0:02:26.3]} 19. Ndxe7 {[%clk 0:01:01.8]}
19... Bxe7 {[%clk 0:02:26.2]} 20. Nxe7 {[%clk 0:01:00.6]} 20... Rxe7 {[%clk
0:02:25.9]} 21. Rxd6 {[%clk 0:01:01.2]} 21... Ng5 {[%clk 0:02:24.5]} 22. f3
{[%clk 0:00:33]} 22... Rxh5 {[%clk 0:02:18.1]} 23. Rf6 {[%clk 0:00:33]} 23...
Rh3 {[%clk 0:02:09.1]} 24. Rg1 {[%clk 0:00:27.1]} 24... Ne6 {[%clk 0:02:02]} 25.
Rg2 {[%clk 0:00:18.6]} 25... Kc7 {[%clk 0:02:01.9]} 26. Rf5 {[%clk 0:00:15.3]}
26... Nf4 {[%clk 0:01:35.6]} 27. Rg7 {[%clk 0:00:14.9]} 27... Rxh2 {[%clk
0:01:35.7]} 28. Rgxf7 {[%clk 0:00:14.2]} 28... Rxf7 {[%clk 0:01:34.8]} 29. Rxf7+
{[%clk 0:00:14.8]} 29... Kc6 {[%clk 0:01:33.5]} 30. Rf5 {[%clk 0:00:14]} 30...
Rf2 {[%clk 0:01:29.6]} 31. Rf6+ {[%clk 0:00:11.8]} 31... Kc5 {[%clk 0:01:25.7]}
32. Rf7 {[%clk 0:00:11.7]} 32... Nd3+ {[%clk 0:01:11.7]} 33. Kb1 {[%clk
0:00:09]} 33... Rxb2+ {[%clk 0:01:10.6]} 34. Ka1 {[%clk 0:00:09.7]} 34... Rf2
{[%clk 0:01:05.5]} 35. a4 {[%clk 0:00:09.9]} 35... Kb6 {[%clk 0:00:58]} 36. Rf6+
{[%clk 0:00:09.6]} 36... Ka5 {[%clk 0:00:58.1]} 37. Rf7 {[%clk 0:00:10.1]} 37...
Kxa4 {[%clk 0:00:47.9]} 38. Rxb7 {[%clk 0:00:10.1]} 38... a5 {[%clk 0:00:48.4]}
39. Kb1 {[%clk 0:00:07]} 39... Rxf3 {[%clk 0:00:41.3]} 40. Kc2 {[%clk
0:00:07.4]} 40... Nc5 {[%clk 0:00:41.6]} 41. Rc7 {[%clk 0:00:06.8]} 41... Rf2+
{[%clk 0:00:41.6]} 42. Kd1 {[%clk 0:00:06.5]} 42... Kb5 {[%clk 0:00:41.9]} 43.
Re7 {[%clk 0:00:06.5]} 43... Nd3 {[%clk 0:00:37.1]} 44. Rd7 {[%clk 0:00:05.5]}
44... Kc4 {[%clk 0:00:36.5]} 45. Rc7+ {[%clk 0:00:04.5]} 45... Kb3 {[%clk
0:00:36.9]} 0-1

[Event "Late-Titled-Tuesday-Blitz-October-10-2023"]
[Site "Chess.com"]
[Date "2023.10.10"]
[Round "8"]
[White "stasOR4ik"]
[Black "borocotoajua"]
[Result "1-0"]
[WhiteElo "2458"]
[BlackElo "2551"]
[TimeControl "180+1"]
[EndTime "15:23:10 PDT"]
[Termination "stasOR4ik won on time"]

1. e4 {[%clk 0:03:00.9]} 1... c6 {[%clk 0:02:57.7]} 2. c4 {[%clk 0:03:01]} 2...
d5 {[%clk 0:02:55.4]} 3. cxd5 {[%clk 0:03:01.9]} 3... cxd5 {[%clk 0:02:56.3]} 4.
exd5 {[%clk 0:03:02.8]} 4... Qxd5 {[%clk 0:02:53.4]} 5. Nc3 {[%clk 0:03:03.7]}
5... Qd8 {[%clk 0:02:53.5]} 6. Bc4 {[%clk 0:03:04.2]} 6... Nf6 {[%clk
0:02:44.7]} 7. Nf3 {[%clk 0:03:04.2]} 7... Nc6 {[%clk 0:02:39.6]} 8. O-O {[%clk
0:03:02.3]} 8... e6 {[%clk 0:02:39.3]} 9. d4 {[%clk 0:03:02.1]} 9... Be7 {[%clk
0:02:39.7]} 10. Qe2 {[%clk 0:02:56.9]} 10... O-O {[%clk 0:02:36.8]} 11. Bf4
{[%clk 0:02:34.8]} 11... Nb4 {[%clk 0:02:36.4]} 12. Be5 {[%clk 0:02:28.8]} 12...
Nbd5 {[%clk 0:02:35.6]} 13. Bd3 {[%clk 0:02:26.5]} 13... b6 {[%clk 0:02:29.5]}
14. Rac1 {[%clk 0:02:19.6]} 14... Bb7 {[%clk 0:02:28.8]} 15. Rfd1 {[%clk
0:02:09.3]} 15... Rc8 {[%clk 0:02:27.6]} 16. Ne4 {[%clk 0:02:03.1]} 16... Rxc1
{[%clk 0:02:07.6]} 17. Rxc1 {[%clk 0:02:04]} 17... Nb4 {[%clk 0:02:03.2]} 18.
Bb1 {[%clk 0:01:46.8]} 18... Nxe4 {[%clk 0:01:54.1]} 19. Bxe4 {[%clk 0:01:47.7]}
19... Bxe4 {[%clk 0:01:54.6]} 20. Qxe4 {[%clk 0:01:48.3]} 20... Nxa2 {[%clk
0:01:35.6]} 21. Rc7 {[%clk 0:01:45.6]} 21... a5 {[%clk 0:01:27.4]} 22. Qg4
{[%clk 0:01:21.3]} 22... g6 {[%clk 0:01:24.9]} 23. Qf4 {[%clk 0:00:42.8]} 23...
f6 {[%clk 0:01:06.3]} 24. Qg4 {[%clk 0:00:42.9]} 24... Kf7 {[%clk 0:00:41.1]}
25. Qh3 {[%clk 0:00:20.1]} 25... h5 {[%clk 0:00:37.7]} 26. Bg3 {[%clk
0:00:13.7]} 26... Nb4 {[%clk 0:00:37.5]} 27. Nh4 {[%clk 0:00:09.2]} 27... Nd5
{[%clk 0:00:36.6]} 28. Rb7 {[%clk 0:00:08.3]} 28... Qc8 {[%clk 0:00:35.3]} 29.
f3 {[%clk 0:00:05.5]} 29... Qxb7 {[%clk 0:00:28.1]} 30. Nxg6 {[%clk 0:00:05.6]}
30... Kxg6 {[%clk 0:00:24]} 31. Qxe6 {[%clk 0:00:06.3]} 31... Rf7 {[%clk
0:00:09.5]} 32. Bh4 {[%clk 0:00:04.5]} 32... Nf4 {[%clk 0:00:03.6]} 33. Qe3
{[%clk 0:00:01.6]} 33... Qc7 {[%clk 0:00:01.3]} 34. g4 {[%clk 0:00:01.8]} 1-0

[Event "Late-Titled-Tuesday-Blitz-October-10-2023"]
[Site "Chess.com"]
[Date "2023.10.10"]
[Round "8"]
[White "jguerramzllo"]
[Black "NovikovaGalina"]
[Result "0-1"]
[WhiteElo "2600"]
[BlackElo "2435"]
[TimeControl "180+1"]
[EndTime "15:23:11 PDT"]
[Termination "NovikovaGalina won on time"]

1. e4 {[%clk 0:02:23.1]} 1... e6 {[%clk 0:02:59.8]} 2. d4 {[%clk 0:02:15]} 2...
d5 {[%clk 0:03:00.7]} 3. exd5 {[%clk 0:02:13.8]} 3... exd5 {[%clk 0:03:01.6]} 4.
Nf3 {[%clk 0:02:13.5]} 4... Nf6 {[%clk 0:03:01.8]} 5. h3 {[%clk 0:02:12.9]} 5...
Bf5 {[%clk 0:03:01.8]} 6. Bd3 {[%clk 0:02:12.2]} 6... Bxd3 {[%clk 0:02:59.7]} 7.
Qxd3 {[%clk 0:02:13.1]} 7... Be7 {[%clk 0:03:00.1]} 8. O-O {[%clk 0:02:12.3]}
8... O-O {[%clk 0:02:59.3]} 9. Bf4 {[%clk 0:02:12.4]} 9... c6 {[%clk 0:02:58.8]}
10. Nbd2 {[%clk 0:02:12.4]} 10... Nbd7 {[%clk 0:02:59.3]} 11. Rfe1 {[%clk
0:02:12]} 11... Re8 {[%clk 0:02:58.2]} 12. Re2 {[%clk 0:02:11.3]} 12... Bf8
{[%clk 0:02:55.2]} 13. Rae1 {[%clk 0:02:08.3]} 13... Rxe2 {[%clk 0:02:55.8]} 14.
Rxe2 {[%clk 0:02:07.3]} 14... Qa5 {[%clk 0:02:54.1]} 15. a3 {[%clk 0:02:02.9]}
15... h6 {[%clk 0:02:49.8]} 16. Ne5 {[%clk 0:01:59.6]} 16... Qb6 {[%clk
0:02:24.1]} 17. Nb3 {[%clk 0:01:33.3]} 17... Nxe5 {[%clk 0:02:22.5]} 18. Bxe5
{[%clk 0:01:32.4]} 18... Nd7 {[%clk 0:02:18.1]} 19. Bf4 {[%clk 0:01:30.1]} 19...
a5 {[%clk 0:02:12.7]} 20. c3 {[%clk 0:01:28]} 20... a4 {[%clk 0:02:11.1]} 21.
Nc1 {[%clk 0:01:27]} 21... Nf6 {[%clk 0:02:06]} 22. Be5 {[%clk 0:01:19.2]} 22...
Nd7 {[%clk 0:02:01.9]} 23. Bg3 {[%clk 0:01:16.2]} 23... Nf6 {[%clk 0:02:01.8]}
24. Be5 {[%clk 0:01:01.7]} 24... Nd7 {[%clk 0:01:59.7]} 25. Qf3 {[%clk
0:01:02.3]} 25... Nxe5 {[%clk 0:01:54.9]} 26. dxe5 {[%clk 0:01:01.7]} 26... Re8
{[%clk 0:01:44.9]} 27. Nd3 {[%clk 0:01:01.6]} 27... d4 {[%clk 0:01:32.5]} 28.
Nf4 {[%clk 0:00:46.9]} 28... dxc3 {[%clk 0:01:25.8]} 29. Qxc3 {[%clk 0:00:46.4]}
29... Qc5 {[%clk 0:01:17.3]} 30. Qxc5 {[%clk 0:00:31.8]} 30... Bxc5 {[%clk
0:01:18.2]} 31. Nd3 {[%clk 0:00:32.1]} 31... Bd4 {[%clk 0:01:16.1]} 32. Kf1
{[%clk 0:00:27.6]} 32... c5 {[%clk 0:01:14.6]} 33. f4 {[%clk 0:00:27.9]} 33...
b5 {[%clk 0:01:13]} 34. Rc2 {[%clk 0:00:25.7]} 34... c4 {[%clk 0:01:10]} 35. Nb4
{[%clk 0:00:23.8]} 35... Be3 {[%clk 0:01:00.9]} 36. g3 {[%clk 0:00:22.8]} 36...
Rd8 {[%clk 0:00:57.4]} 37. Ke2 {[%clk 0:00:20.6]} 37... Bc5 {[%clk 0:00:54.7]}
38. Rd2 {[%clk 0:00:08.8]} 38... Re8 {[%clk 0:00:20]} 39. Kf3 {[%clk 0:00:08]}
39... Bxb4 {[%clk 0:00:18.2]} 40. axb4 {[%clk 0:00:07.7]} 40... Rc8 {[%clk
0:00:19.1]} 41. Ke2 {[%clk 0:00:01.9]} 41... c3 {[%clk 0:00:19.4]} 0-1